Cogmind - Beta 13 X2 @@@ ROGUE MODE // 2024.01.12 @ 23:19:31 Player: Boris Result: Destroyed by W8-XRC(R) with Subdweller Beam Cannon Performance ------------- Evolutions (0) 0 Regions Visited (2) 400 Robots Destroyed (24) 120 Value Destroyed (431) 431 Prototype IDs (0) 0 Alien Tech Used (0) 0 Bonus (0) 0 TOTAL SCORE: 951 Bonus ------- None Cogmind --------- Core Integrity 0/250 Matter 248/300 Energy 112/250 System Corruption 0% Temperature Danger (453) Movement Rolling (200) Ox8 Location -10/Subcaves Parts ------- > --- POWER (1) -------- Ion Engine > --- PROPULSION (2) --- Wheel > --- UTILITY (2) ------ Huge Storage Unit > --- WEAPON (2) ------- Light Assault Rifle Light Assault Rifle > --- INVENTORY (25) --- Ion Engine Light Treads Light Treads Wheel Wheel Heat Sink Heat Sink Heat Sink Improved Heat Sink Large Matter Pod (150) Weight Redist. System Structural Scanner Machine Analyzer Improved Terrain Scanner Improved Terrain Scanner Transport Network Coupler Recalibrator Small Laser Datajack Peak State ------------ > --- POWER ------------ Light Ion Engine > --- PROPULSION ------- Light Treads Wheel > --- UTILITY ---------- Huge Storage Unit Improved Terrain Scanner > --- WEAPON ----------- Small Laser Small Laser > --- INVENTORY -------- Ion Engine Ion Engine Ion Engine Light Ion Engine Light Treads Wheel Heat Sink Heat Sink Improved Heat Sink Large Matter Pod Weight Redist. System Structural Scanner Machine Analyzer Improved Terrain Scanner Light Armor Plating Recalibrator EM Pulse Gun Small Laser Light Assault Rifle Light Assault Rifle Grenade Launcher Datajack [Rating: 12] Favorites ----------- Power Light Ion Engine Engine Light Ion Engine Propulsion Light Treads Treads Light Treads Wheel Wheel Utility Huge Storage Unit Device Seismic Detector Storage Huge Storage Unit Protection Light Armor Plating Weapon Small Laser Energy Gun Small Laser Ballistic Gun Light Assault Rifle Launcher Grenade Launcher Build | -11 -10 -10 ------- Run | Yrd Mat Sub Slots Evolved . | . . . Power . | . . . Propulsion . | . . . Utility . | . . . Weapon . | . . . Parts Attached 33 | 6 18 9 Power 3 | 1 1 1 Engine 3 | 1 1 1 Core . | . . . Reactor . | . . . Propulsion 8 | 2 5 1 Treads 4 | 2 2 . Leg . | . . . Wheel 4 | . 3 1 Hover . | . . . Flight . | . . . Utility 9 | 1 7 1 Device 4 | . 4 . Storage 3 | 1 2 . Processor . | . . . Hackware . | . . . Protection 2 | . 1 1 Artifact . | . . . Weapon 13 | 2 5 6 Energy Gun 6 | 1 2 3 Energy Cannon . | . . . Ballistic Gun 4 | 1 1 2 Ballistic Cannon . | . . . Launcher 3 | . 2 1 Special Weapon . | . . . Impact Weapon . | . . . Slashing Weapon . | . . . Piercing Weapon . | . . . Special Melee Weapon . | . . . Unidentified Prototypes . | . . . Parts Lost 7 | . 1 6 Power 1 | . . 1 Propulsion 1 | . . 1 Utility 2 | . 1 1 Weapon 3 | . . 3 Highest Loss Streak 6 | . 1 6 To Critical Strikes . | . . . Average Slot Usage (%) 99 | . 99 97 Engine 14 | . 14 14 Treads 20 | . 22 . Wheel 7 | . 5 28 Device 13 | . 13 12 Storage 14 | . 14 14 Energy Gun 22 | . 22 24 Ballistic Gun 5 | . 5 . Naked Turns . | . . . Heaviest Build 90 | 10 90 90 Greatest Support 40 | 40 40 20 Greatest Overweight (x) 8 | . 8 4 Average Overweight (x) 2 | . 2 4 Largest Inventory Capacity 25 | 8 25 25 Average Capacity 19 | 5 20 25 Most Carried 25 | 4 25 23 Average Carried 13 | 2 13 22 Final Capacity 25 | 8 25 25 Final Carried 23 | 4 23 19 Class Distribution -------------------- 75% | Mutant 24% | Scavenger-Mutant Dominant Class ---------------- Mutant | -10/Materials Scavenger-Mutant | -10/Subcaves Resources | -11 -10 -10 ----------- Run | Yrd Mat Sub Matter Collected 678 | 268 380 30 Remotely . | . . . Salvage Created 912 | 118 753 41 Parts 53 | 10 42 1 Haulers Intercepted 2 | . 2 . Recyclers Shooed 2 | 1 1 . Parts Field Recycled . | . . . Retrieved Matter . | . . . Parts Self-Destructed 4 | . . 4 Prevented . | . . . Kills | -11 -10 -10 ------- Run | Yrd Mat Sub Combat Hostiles Destroyed 12 | . 12 . Guns 9 | . 9 . AOE 3 | . 3 . Classes Destroyed 9 | 2 6 1 Worker 1 | . 1 . Builder 1 | . 1 . Tunneler 4 | 2 2 . Hauler 2 | . 2 . Recycler 3 | 1 2 . Mechanic 1 | . 1 . Swarmer 3 | . 3 . Grunt 9 | . 9 . Cobbler 1 | . . 1 Best Kill Streak 5 | 2 5 . Combat Bots Only 5 | . 5 . Max Kills in Single Turn 2 | 1 2 1 Gunslinging . | . . . Exploded 2 | . 2 . Melee . | . . . Uniques/NPCs Destroyed . | . . . Combat | -11 -10 -10 -------- Run | Yrd Mat Sub Hostile Shots Fired 88 | . 69 19 Missed 19 | . 17 2 Damage Taken 1180 | . 661 519 Core 256 | . 134 122 Absorbed by Shields . | . . . Core Remaining (%) 100 | 100 . . Volleys Fired 116 | 8 97 11 Largest 2 | 2 2 2 Hottest 80 | 60 80 80 Shots Fired 216 | 16 184 16 Gun 211 | 16 181 14 Cannon . | . . . Launcher 5 | . 3 2 Special . | . . . Kinetic 38 | 8 28 2 Thermal 167 | 8 153 6 Explosive 5 | . 3 2 Electromagnetic 6 | . . 6 Robot Hit Streak 19 | 5 19 17 Robot Miss Streak 5 | 1 5 1 Penetration Max . | . . . Secondary Targets . | . . . Shots Hit Robots 151 | 12 127 12 Core Hits 52 | 4 41 7 Critical Kills . | . . . Critical Parts Destroyed . | . . . Critical Strikes . | . . . Melee Attacks . | . . . Impact . | . . . Slashing . | . . . Piercing . | . . . Sneak Attacks . | . . . Combat Hostiles . | . . . Follow-up Attacks . | . . . Damage Inflicted 1966 | 116 1540 310 Guns 1602 | 113 1362 127 Cannons . | . . . Explosions 358 | . 175 183 Melee . | . . . Ramming 6 | 3 3 . Kinetic 197 | 28 152 17 Thermal 1353 | 85 1210 58 Explosive 358 | . 175 183 Electromagnetic 52 | . . 52 Impact . | . . . Slashing . | . . . Piercing . | . . . Highest Corruption . | . . . Average Corruption . | . . . Corruption Purged . | . . . Corruption Blocked . | . . . Overload Shots . | . . . Overflow Damage 7 | . 7 . Projectiles . | . . . Explosions 7 | . 7 . Melee . | . . . Knockbacks . | . . . Impact . | . . . Kinetic . | . . . Secondary . | . . . Self-Inflicted Damage 64 | . 16 48 Shots 3 | . 1 2 Rammed 3 | 1 2 . Targets Rammed 3 | 1 2 . Kicked . | . . . Crushed . | . . . Highest Temperature 497 | 40 325 497 Average Temperature 71 | 20 67 399 Received Heat Transfer 1106 | . 393 713 Effects 1 | . . 1 Damage (minor) 1 | . . 1 Siege Activations . | . . . Robots Corrupted . | . . . Combat Hostiles . | . . . Parts Fried . | . . . Impact Corruptions . | . . . Robots Melted . | . . . Combat Hostiles . | . . . Parts Melted 7 | . 7 . Heat Transferred 3100 | 200 2775 125 Parts Sabotaged . | . . . Parts Stolen . | . . . Parts Stripped . | . . . Power Chain Reactions . | . . . Missiles Intercepted . | . . . Alert | -11 -10 -10 ------- Run | Yrd Mat Sub Peak Influence 185 | 15 185 . Initial 9 | . 9 . Average 60 | 6 63 . Maximum Alert Level . | . . . Low Security (%) 100 | 100 100 . Level 1 . | . . . Level 2 . | . . . Level 3 . | . . . Level 4 . | . . . Level 5 . | . . . High Security . | . . . Max Security . | . . . Squads Dispatched 2 | . 2 . Investigation 2 | . 2 . Extermination . | . . . Reinforcement . | . . . Assault . | . . . Garrison . | . . . Intercept . | . . . Searches Triggered . | . . . Construction Impeded . | . . . Haulers Reinforced . | . . . Active Scanning Responses . | . . . Cargo Convoy Interrupts . | . . . Stealth | -11 -10 -10 --------- Run | Yrd Mat Sub Distress Signals 2 | . 2 . Communications Jammed . | . . . Distress Signals . | . . . Times Spotted 31 | . 29 2 Peak Tracking Total 4 | . 4 2 Tactical Retreats 1 | . 1 . Traps | -11 -10 -10 ------- Run | Yrd Mat Sub Traps Triggered . | . . . Indirectly . | . . . Trap Hack Attempts . | . . . Triggered . | . . . Disarmed . | . . . Reprogrammed . | . . . Reused . | . . . Traps Extracted . | . . . Installed . | . . . Triggered 1 | . . 1 Machines | -11 -10 -10 ---------- Run | Yrd Mat Sub Machines Disabled . | . . . Max in Single Turn . | . . . Machines Repaired . | . . . Machines Dismantled . | . . . Machines Sabotaged . | . . . Overloaded Fab Kills . | . . . Hacking | -11 -10 -10 --------- Run | Yrd Mat Sub Machines Accessed 7 | . 7 . Terminals 6 | . 6 . Fabricators . | . . . Repair Stations . | . . . Recycling Units 1 | . 1 . Scanalyzers . | . . . Garrison Access . | . . . Total Hacks 18 | . 18 . Successful 6 | . 6 . Failed 11 | . 11 . Catastrophic 3 | . 3 . Database Lockouts 1 | . 1 . Manual 13 | . 13 . Terminals 16 | . 16 . Fabricators . | . . . Repair Stations . | . . . Recycling Units 2 | . 2 . Scanalyzers . | . . . Garrison Access . | . . . Terminal Hacks 4 | . 4 . Part Schematic 1 | . 1 . Locate Traps 2 | . 2 . Hauler Manifests 1 | . 1 . Fabricator Hacks . | . . . Repair Station Hacks . | . . . Recycling Unit Hacks . | . . . Scanalyzer . | . . . Garrison Access Hacks . | . . . Unauthorized Hacks 2 | . 2 . Terminals 2 | . 2 . Botnet 1 | . 1 . Operators 1 | . 1 . Fabricators . | . . . Repair Stations . | . . . Recycling Units . | . . . Scanalyzers . | . . . Garrison Access . | . . . Data Cores Recovered . | . . . Used . | . . . Hacking Detections 6 | . 6 . Full Trace Events 2 | . 2 . Feedback Events . | . . . Feedback Blocked . | . . . Robot Schematics Acquired . | . . . Robots Built . | . . . Authchips . | . . . Time . | . . . Total Robot Build Rating . | . . . Part Schematics Acquired 1 | . 1 . Parts Built . | . . . Authchips . | . . . Time . | . . . Total Part Build Rating . | . . . Parts Repaired . | . . . Time . | . . . Parts Recycled . | . . . Recycled Matter . | . . . Retrieved Matter . | . . . Retrieved Components . | . . . Parts Scanalyzed . | . . . Part Schematics Acquired . | . . . Parts Damaged . | . . . Bothacking | -11 -10 -10 ------------ Run | Yrd Mat Sub Used RIF Installer . | . . . Robots Hacked . | . . . Non-combat . | . . . Combat . | . . . Robot Hacks Applied . | . . . Relay Couplers Released . | . . . Fabnet Peak Effective % . | . . . Robots Rewired . | . . . Allies Hacked . | . . . Hacks Repelled . | . . . Allies | -11 -10 -10 -------- Run | Yrd Mat Sub Total Allies . | . . . Largest Group . | . . . Highest-Rated Group . | . . . Highest-Rated Ally . | . . . Total Orders . | . . . Ally Attacks . | . . . Total Damage . | . . . Kills . | . . . Allies Corrupted . | . . . Allies Melted . | . . . Intel | -11 -10 -10 ------- Run | Yrd Mat Sub Robot Analysis Total . | . . . Derelict Logs Recovered . | . . . Drone Launches . | . . . Drone Recoveries . | . . . Exploration | -11 -10 -10 ------------- Run | Yrd Mat Sub Turns Passed 2203 | 107 1934 162 Spaces Moved 711 | 58 577 76 Core 24 | 24 . . Treads 451 | 34 417 . Legs . | . . . Wheels 236 | . 160 76 Hover . | . . . Flight . | . . . Fastest Speed 50 | 50 160 140 Average Speed 178 | 114 190 140 Slowest Speed 320 | 160 320 140 Overloaded Moves . | . . . Propulsion Burnouts . | . . . Robots Hopped . | . . . Cave-ins Triggered . | . . . Exploration Rate (%) 35 | 4 89 14 Regions Visited 2 Branch Regions 1 Pre-discovered Areas . | . . . Known Exits Taken . | . . . Unknown Exits Taken 2 | 1 1 . Scrap Searched . | . . . Spaces Dug 12 | . 12 . Terrain Destroyed 22 | . 17 5 Melee . | . . . Projectile . | . . . AOE 22 | . 17 5 Terrain Rammed . | . . . Walls Destroyed . | . . . Machines Disabled . | . . . Actions | -11 -10 -10 --------- Run | Yrd Mat Sub Total 1423 | 82 1227 114 Wait 525 | 4 503 18 Move 710 | 58 576 76 Hop . | . . . Pick Up 32 | 6 26 . Fast Attach 4 | 4 . . Attach 8 | 2 2 4 Detach . | . . . Swap 21 | . 16 5 Drop 5 | . 5 . Fire 116 | 8 97 11 Melee . | . . . Ram . | . . . Kick . | . . . Crush 2 | . 2 . Escape Stasis . | . . . Rewire . | . . . Trap . | . . . Miscellaneous . | . . . Route ------- -11/Scrapyard -10/Materials (discovered 4 exits: [*Mat x2] / [*Min] / [*Sub]) -10/Subcaves (discovered 1 exit: [*Mat]) History --------- Turn | Location | Event 2 | -11/Scrapyard | Discovered new exit (range 16) 108 | -11/Scrapyard | Entered Materials 188 | -10/Materials | Central database locked down 314 | -10/Materials | Build established: Mutant 423 | -10/Materials | Discovered new exit (range 13) 801 | -10/Materials | Discovered new exit (range 4) 1237 | -10/Materials | Core integrity fell below 50% 1378 | -10/Materials | Discovered new exit (range 12) 1764 | -10/Materials | Discovered new exit (range 3) 1955 | -10/Materials | Build established: Scavenger-Mutant 2042 | -10/Materials | Entered Subcaves 2052 | -10/Subcaves | Discovered new exit (range 5) 2202 | -10/Subcaves | Core integrity fell below 20% 2204 | -10/Subcaves | Destroyed by W8-XRC(R) with Subdweller Beam Cannon Last Messages --------------- LOCATION=UNKNOWN AMBIENT_HEAT=-10 GOAL=ESCAPE 02045_ Acquired 10 matter. 02052_ EXIT=FOUND 02115_ 1R-3MP(O) collects matter. 02116_ 1R-3MP(O) puts together Sub. Power Source. 02120_ 1R-3MP(O) collects matter. 02134_ 1R-3MP(O) cries out in pain. 02134_ 1R-3MP(O) destroyed. 02141_ Acquired 20 matter. 02190_ Ion Engine destroyed. 02192_ Lgt. Armor Plating destroyed. 02195_ EM Pulse Gun destroyed. 02195_ Sml. Laser destroyed. 02198_ Grenade Launcher destroyed. 02198_ Critical hit (Meltdown: +290). 02200_ Critical hit (Meltdown: +270). 02203_ Overheating: Wheel damaged (-13). 02203_ Wheel destroyed. Map ----- +----------------------------------------------------+ | ?????????????????????????????????????????????????# | | ????????????????????????????????????????????????## | | ????????????????????????????????????????????????## | | ????????????????????????????????????????????????## | | ????????????????????????????????????????????????## | | ????????????????????????????????????????????????## | | ????????????????????????????????????????????????## | | ????????????????????????????????????????????????## | | ????????????????????????????????????????????###### | | ?????????????????????????????????????######### ## | | ?????????????????????????????????????######### | | ????????????????????????????????????? #### | | ????????????????????????????????????? #### % | | ???????????????????????????????????? ##### | | ???????????????????????????????????? ##### | | ???????????????????????????????????? ### | | ????????????????????????######?????# | | ???????????????????????########????## | | ???????????????????????### ########## | | ???????????????????????## ########## | | ???????????????????????## ###### | | ????????????# ????????## #### ## | | ????????????## ?####### ## ### | | ????????????### ###### #### | | ?????????????## ## ### | | ?????????????## R @ ##### ### | | ?????????# R ;# ## ### ### | | ?????????## "" ###### *%* | | ?????????### ##"" # ####### | | ??????????###??### " ## ####### | | ???????????????## ?## ;### | | ??????????????### ??## ## | | ??????????????## ???###### | | ??????????????# ????###### ### | | ??????????????" ????????### ### | | ?????????????? ????????### % ## | | ??????????????????????### ### | | ??????????????????????##" ### ### ## | | ??????????????????????#"" #### ##### ## | | ???????????????????????""" ?### ###### ## | | ??????????????????????? "" ?? ?### #### | | ?????????????????????????"" ??######## | | ?????????????????????????"" ? ####?# | | ????????????????????????? ## ???????? | | ???????????????????????? ### ## ??????? | | ???????????????????????? ### ##### #### ?????? | | ????????????????????????################### ?????? | | ??????????????????????????#####??#######?###?????? | | ?????????????????????????????????????????????????? | | ?????????????????????????????????????????????????? | +----------------------------------------------------+ Best States ------------- Heat Dissipation 39 Energy Generation 10 Energy Capacity 250 Matter Stores 300 Matter Capacity 300 Sight Range 16 Terrain Scan Range 16 Terrain Scan Density 10 Armor Coverage 150 Evasion (%) 50 Recoil Reduction 2 Item Schematics ----------------- Hcp. Storage Unit | -10/Materials | Hacked Robot Schematics ------------------ None Fabricated ------------ Nothing Alien Tech Used ----------------- None Achievements -------------- None Challenges ------------ None Game ------ Seed AlertIonMicroactuators Manual? 0 Play Time 00:13:43 Cumulative 406.8 hours Start 2024.01.12 @ 23:06:57 End 2024.01.12 @ 23:19:31 Sessions 1 Manual Loads 0 Difficulty Rogue Special Mode None Game No. 150 Rogue 135 Adventurer 15 Explorer 0 Win Type - Total 26 Types 7/1/7/2/2/0/4/2/1 Lore% 89 Gallery% 91 Achievement% 83 Wizard Run 0 Options --------- ASCII 0 Keyboard 0 Movement Numpad Keybinds 0 Fullscreen 1 Font 18/SmallcapsGlow Map View 76x50 Zoom Use 0% Tactical HUD 1 Map Filters NONE Filters NONE Steam 1 RUN: ab56e84b-c6ba-4b28-893a-f944667cbe8c